Cogmind - Beta 15 @@@ ROGUE MODE // 2025.06.01 @ 01:18:39 Player: jumpy Result: Destroyed by H-66 Slayer with Gauss Rifle Performance ------------- Evolutions (4) 2000 Regions Visited (9) 1800 Robots Destroyed (68) 340 Value Destroyed (1596) 1596 Prototype IDs (6) 120 Alien Tech Used (0) 0 Bonus (941) 941 TOTAL SCORE: 6797 Bonus ------- Follower Combat Kills 141 Registered with UFD 300 Met Optimus in HQ 500 Cogmind --------- Core Integrity 0/850 Matter 55/300 Energy 100/100 System Corruption 8% Temperature Cool (0) Movement Core (50) Location -6/Lower Caves Parts ------- > --- POWER (1) -------- (None) > --- PROPULSION (4) --- (None) > --- UTILITY (7) ------ Advanced Signal Interpreter Targeting Computer Improved Core Shielding > --- WEAPON (3) ------- (None) > --- INVENTORY (5) ---- Improved Deuterium Engine Angular Momentum Engine Improved Core Shielding Improved Core Shielding Coil Gun Peak State ------------ > --- POWER ------------ Fission Core > --- PROPULSION ------- Light Treads Light Treads Improved Treads Improved Treads > --- UTILITY ---------- Large Storage Unit Sensor Array Improved Terrain Scanner Energy Filter Hardened Light Armor Plating A0-MCA's Component Scanner Corruption Screen > --- WEAPON ----------- Advanced Beam Cannon Heavy Flak Cannon Heavy Hammer > --- INVENTORY -------- Reinforced Ion Engine Reinforced Ion Engine Medium Treads Improved Medium Treads Compact Wheel Heavy Plasma Cannon Cooled Plasma Cannon Improved Light Cannon Improved Light Cannon Improved Light Cannon [Rating: 48] Favorites ----------- Power Cooled Ion Engine Engine Cooled Ion Engine Power Core Fission Core Propulsion Light Treads Treads Light Treads Leg Armored Leg Wheel Compact Wheel Flight Unit Improved Cesium-ion Thruster Utility Large Storage Unit Device Seismic Detector Storage Large Storage Unit Processor Advanced Signal Interpreter Protection Hardened Light Armor Plating Weapon Advanced Beam Cannon Energy Gun Spread Laser Energy Cannon Advanced Beam Cannon Ballistic Gun Assault Rifle Ballistic Cannon Improved Light Cannon Impact Weapon Heavy Hammer Build | -11 -10 -9 -9 -9 -9 -6 -6 -6 -6 ------- Run | Yrd Mat Mat Sto Rec Scr Fac Was Fac Low Slots Evolved 8 | . . 2 . . . 6 . . . Power . | . . . . . . . . . . Propulsion 2 | . . . . . . 2 . . . Utility 5 | . . 2 . . . 3 . . . Weapon 1 | . . . . . . 1 . . . Parts Attached 62 | 7 5 9 16 1 4 7 . 13 . Power 9 | 1 1 1 2 . 1 . . 3 . Engine 8 | 1 1 1 2 . . . . 3 . Core 1 | . . . . . 1 . . . . Reactor . | . . . . . . . . . . Propulsion 15 | 2 . 3 4 1 . 1 . 4 . Treads 11 | 2 . 2 3 1 . 1 . 2 . Leg 1 | . . . . . . . . 1 . Wheel 2 | . . 1 1 . . . . . . Hover . | . . . . . . . . . . Flight 1 | . . . . . . . . 1 . Utility 19 | 2 1 4 3 . 2 4 . 3 . Device 8 | 1 . 3 1 . 2 1 . . . Storage 2 | 1 1 . . . . . . . . Processor 5 | . . . . . . 3 . 2 . Hackware . | . . . . . . . . . . Protection 4 | . . 1 2 . . . . 1 . Artifact . | . . . . . . . . . . Weapon 19 | 2 3 1 7 . 1 2 . 3 . Energy Gun 1 | . . . 1 . . . . . . Energy Cannon 3 | . . 1 2 . . . . . . Ballistic Gun 7 | 2 1 . 2 . 1 . . 1 . Ballistic Cannon 7 | . 2 . 2 . . 1 . 2 . Launcher . | . . . . . . . . . . Special Weapon . | . . . . . . . . . . Impact Weapon 1 | . . . . . . 1 . . . Slashing Weapon . | . . . . . . . . . . Piercing Weapon . | . . . . . . . . . . Special Melee Weapon . | . . . . . . . . . . Unidentified Prototypes 5 | . . 2 1 . . . . 2 . Parts Lost 25 | . . 3 10 1 . 1 6 3 1 Power 2 | . . . 1 . . . 1 . . Propulsion 10 | . . 1 3 1 . . 2 2 1 Utility 7 | . . 2 2 . . 1 2 . . Weapon 6 | . . . 4 . . . 1 1 . Highest Loss Streak 6 | . . 1 6 1 . 1 6 2 1 To Critical Strikes . | . . . . . . . . . . Average Backups 11 | 4 8 13 14 12 13 9 8 4 5 Power 1 | . 1 2 2 2 2 2 1 . 2 Propulsion 4 | 1 1 4 7 5 5 3 2 1 . Utility . | . 2 . . . . . . 1 2 Weapon 4 | 1 3 5 4 4 5 4 3 1 1 Tool/Special . | . . . . . . . . . . Unused Backups 26 | . 3 2 3 . 7 1 3 5 2 Power 4 | . 1 . . . 1 1 1 . . Propulsion 8 | . 1 1 . . 4 . 1 1 . Utility 2 | . . . . . . . . . 2 Weapon 11 | . 1 1 3 . 1 . 1 4 . Tool/Special 1 | . . . . . 1 . . . . Average Slot Usage (%) 82 | . 99 91 80 76 88 93 72 20 33 Engine 8 | . 14 11 10 11 7 . . . . Core 1 | . . . . . 3 6 5 . . Treads 20 | . 27 19 19 21 22 25 20 . . Device 11 | . 14 20 12 . 11 13 10 . . Storage 10 | . 14 11 11 11 11 6 5 . . Processor 1 | . . . . . . 14 12 7 13 Protection 7 | . . 5 4 11 11 5 . 3 6 Energy Cannon 7 | . . 6 10 11 11 6 5 . . Ballistic Gun 3 | . 25 . 1 . . . . 2 . Ballistic Cannon 9 | . 2 15 9 11 11 6 5 1 . Peak Build Rating 48 | 7 9 17 17 16 24 48 44 28 23 Average Rating 17 | 5 8 14 14 15 20 42 33 15 22 On Entrance 15 | . 7 9 14 16 16 24 44 1 23 Naked Turns 45 | . . . . . . . 18 27 . Heaviest Build 55 | 15 37 41 42 41 47 55 47 18 2 Greatest Support 86 | 40 40 43 40 40 40 86 86 30 6 Greatest Overweight (x) 14 | . 4 2 8 1 1 . 14 . . Average Overweight (x) . | . . . . 1 1 . . . . Largest Inventory Capacity 15 | 8 15 15 15 15 15 15 15 5 5 Average Capacity 13 | 7 10 15 15 15 15 15 13 5 5 Most Carried 15 | 7 11 15 15 13 15 13 9 5 5 Average Carried 11 | 4 8 13 14 12 13 9 8 4 5 Final Capacity 15 | 8 15 15 15 15 15 15 5 5 5 Final Carried 15 | 7 11 15 13 12 14 9 5 5 5 Class Distribution -------------------- 51% | Mutant 46% | Commander-Mutant Dominant Class ---------------- Mutant | -10/Materials Mutant | -9/Materials Mutant | -9/Storage Commander-Mutant | -9/Recycling Commander-Mutant | -9/Scraptown Commander-Mutant | -6/Factory Assassin | -6/Waste Mutant | -6/Factory Mutant | -6/Lower Caves Resources | -11 -10 -9 -9 -9 -9 -6 -6 -6 -6 ----------- Run | Yrd Mat Mat Sto Rec Scr Fac Was Fac Low Matter Collected 1623 | 342 167 317 516 71 55 83 . 11 61 Remotely . | . . . . . . . . . . Salvage Created 2145 | 156 265 542 807 168 . 83 . 124 . Parts 153 | 10 24 50 45 11 . 2 . 11 . Haulers Intercepted 8 | . 1 2 5 . . . . . . Recyclers Shooed 2 | . . . . 1 . . . 1 . Parts Field Recycled . | . . . . . . . . . . Retrieved Matter . | . . . . . . . . . . Parts Self-Destructed . | . . . . . . . . . . Prevented . | . . . . . . . . . . Kills | -11 -10 -9 -9 -9 -9 -6 -6 -6 -6 ------- Run | Yrd Mat Mat Sto Rec Scr Fac Was Fac Low Combat Hostiles Destroyed 47 | . 7 21 11 4 . 2 . 2 . Melee 1 | . . . . . . 1 . . . Guns 8 | . 6 . 1 . . . . 1 . Cannons 37 | . 1 20 10 4 . 1 . 1 . Classes Destroyed 11 | 2 5 1 2 . . . . 1 . Worker 4 | . 1 1 1 . . . . 1 . Builder 1 | . . . 1 . . . . . . Tunneler 4 | 3 . 1 . . . . . . . Hauler 8 | . 1 2 5 . . . . . . Recycler 3 | 1 . . 2 . . . . . . Watcher 1 | . 1 . . . . . . . . Swarmer 16 | . 4 12 . . . . . . . Grunt 15 | . 3 4 5 2 . 1 . . . Duelist 2 | . . . 1 . . 1 . . . Sentry 13 | . . 5 5 2 . . . 1 . Demolisher 1 | . . . . . . . . 1 . Best Kill Streak 5 | 3 4 4 5 4 . 1 . 2 . Combat Bots Only 4 | . 3 4 2 4 . 1 . 1 . Max Kills in Single Turn 2 | 1 2 1 2 1 . 1 . 1 . Gunslinging . | . . . . . . . . . . Exploded . | . . . . . . . . . . Melee 1 | . . . . . . 1 . . . Uniques/NPCs Destroyed . | . . . . . . . . . . Combat | -11 -10 -9 -9 -9 -9 -6 -6 -6 -6 -------- Run | Yrd Mat Mat Sto Rec Scr Fac Was Fac Low Hostile Shots Fired 478 | . 39 107 127 26 . 9 5 102 63 Missed 148 | . 7 30 39 5 . 2 . 39 26 Hits 330 | . 32 77 88 21 . 7 5 63 37 Melee 18 | . . . 10 . . . 5 3 . Projectile 312 | . 32 77 78 21 . 7 . 60 37 AOE 19 | . . . . . . . . 19 . Critical Strikes 10 | . . 1 5 1 . . 1 2 . Actively Blocked 1 | . . . . . . . . 1 . Damage Taken 5002 | . 322 803 1312 279 . 174 177 1419 516 Core 1269 | . 70 43 283 15 . 18 118 562 160 Absorbed by Shields 30 | . . . . . . . 30 . . Redirected to Shielding 84 | . . . . . . . . 28 56 Regen/Repaired (Parts) 116 | . . 116 . . . . . . . Core Remaining (%) 62 | 100 72 . . . 14 . . . . Volleys Fired 199 | 12 24 76 47 9 . 4 . 27 . Largest 2 | 2 2 2 2 2 . 2 . 1 . Hottest 112 | 40 60 98 101 101 . 112 . 33 . Shots Fired 327 | 24 48 115 86 19 . 8 . 27 . Gun 85 | 24 44 . 11 . . . . 6 . Cannon 242 | . 4 115 75 19 . 8 . 21 . Launcher . | . . . . . . . . . . Special . | . . . . . . . . . . Kinetic 253 | 24 48 87 54 9 . 4 . 27 . Thermal 74 | . . 28 32 10 . 4 . . . Explosive . | . . . . . . . . . . Electromagnetic . | . . . . . . . . . . Robot Hit Streak 13 | 4 10 8 13 4 . 8 . 5 . Robot Miss Streak 5 | 2 3 5 4 4 . 1 . 2 . Penetration Max 1 | . . . . . . . . 1 . Secondary Targets . | . . . . . . . . . . Shots Hit Robots 198 | 12 33 65 52 9 . 10 . 17 . Core Hits 85 | 5 14 26 24 4 . 3 . 9 . Critical Kills 1 | . . 1 . . . . . . . Critical Parts Destroyed . | . . . . . . . . . . Critical Strikes 6 | . . 4 2 . . . . . . Meltdown 1 | . . 1 . . . . . . . Blast 5 | . . 3 2 . . . . . . Melee Attacks 5 | . . . . . . 5 . . . Impact 5 | . . . . . . 5 . . . Slashing . | . . . . . . . . . . Piercing . | . . . . . . . . . . Sneak Attacks . | . . . . . . . . . . Combat Hostiles . | . . . . . . . . . . Follow-up Attacks . | . . . . . . . . . . Damage Inflicted 4139 | 140 431 1262 1105 222 . 349 . 630 . Guns 753 | 140 407 . 66 . . . . 140 . Cannons 3114 | . 19 1256 998 214 . 149 . 478 . Explosions . | . . . . . . . . . . Melee 200 | . . . . . . 200 . . . Ramming 72 | . 5 6 41 8 . . . 12 . Kinetic 2820 | 140 426 786 672 111 . 67 . 618 . Thermal 1047 | . . 470 392 103 . 82 . . . Explosive . | . . . . . . . . . . Electromagnetic . | . . . . . . . . . . Impact 200 | . . . . . . 200 . . . Slashing . | . . . . . . . . . . Piercing . | . . . . . . . . . . Highest Corruption 8 | . . 1 1 1 . . 8 8 8 Average Corruption 2 | . . 1 1 1 . . 2 8 8 Corruption Purged . | . . . . . . . . . . Corruption Blocked 4 | . . . . . . . 4 . . Effects 34 | . . 3 10 4 . . 1 12 4 Message Errors 8 | . . 1 . . . . 1 4 2 Matter Fused 8 | . . . . 2 . . . 4 2 Heat Flow Errors 4 | . . 1 2 . . . . 1 . Energy Discharges 4 | . . . 2 . . . . 2 . Data Loss (minor) 6 | . . . 4 1 . . . 1 . Data Loss (major) 1 | . . . 1 . . . . . . Misfires 1 | . . . . 1 . . . . . Weapon Failures 2 | . . 1 1 . . . . . . Overload Shots . | . . . . . . . . . . Overflow Damage 76 | . . 3 8 . . 61 . 4 . Projectiles 22 | . . 3 8 . . 7 . 4 . Explosions . | . . . . . . . . . . Melee 54 | . . . . . . 54 . . . Knockbacks 14 | . . 4 4 1 . . . 5 . Impact . | . . . . . . . . . . Kinetic 14 | . . 4 4 1 . . . 5 . Secondary . | . . . . . . . . . . Self-Inflicted Damage 5 | . . . . . . . . 5 . Shots . | . . . . . . . . . . Rammed 12 | . 1 1 6 2 . . . 2 . Targets Rammed 15 | . 2 2 7 2 . . . 2 . Kicked . | . . . . . . . . . . Crushed 3 | . 1 1 1 . . . . . . Highest Temperature 374 | . 18 202 210 374 . 66 . 300 . Average Temperature 57 | . 7 41 29 179 . 32 . 98 . Received Heat Transfer 1233 | . 99 171 465 114 . 63 . 297 24 Siege Activations . | . . . . . . . . . . Martial Activations . | . . . . . . . . . . Shielding Activations . | . . . . . . . . . . Robots Disrupted . | . . . . . . . . . . Combat Hostiles . | . . . . . . . . . . Robots Corrupted . | . . . . . . . . . . Combat Hostiles . | . . . . . . . . . . Parts Fried . | . . . . . . . . . . Impact Corruptions 4 | . . . . . . 4 . . . Robots Melted 1 | . . 1 . . . . . . . Combat Hostiles 1 | . . 1 . . . . . . . Parts Melted 1 | . . 1 . . . . . . . Heat Transferred 1880 | . . 851 696 185 . 148 . . . Parts Sabotaged . | . . . . . . . . . . Parts Stolen . | . . . . . . . . . . Parts Stripped . | . . . . . . . . . . Power Chain Reactions . | . . . . . . . . . . Alert | -11 -10 -9 -9 -9 -9 -6 -6 -6 -6 ------- Run | Yrd Mat Mat Sto Rec Scr Fac Was Fac Low Maximum Alert Level 1 | . . 1 . . . . . . . Low Security (%) 97 | 100 100 89 100 100 . 100 100 100 . Level 1 2 | . . 10 . . . . . . . Level 2 . | . . . . . . . . . . Level 3 . | . . . . . . . . . . Level 4 . | . . . . . . . . . . Level 5 . | . . . . . . . . . . High Security . | . . . . . . . . . . Max Security . | . . . . . . . . . . Peak Influence 226 | 5 66 226 105 60 . 20 3 60 . Initial 84 | . . 3 84 17 . . 3 . . Average 35 | . 14 92 41 8 . 2 . 12 . Influence Increases 1732 | 20 199 611 605 96 . 54 . 147 . Destroy 0b10 Robot/C 1040 | . 140 420 320 80 . 40 . 40 . Destroy 0b10 Robot/NC 120 | 20 15 20 55 . . 5 . 5 . Destroy Leader 240 | . 24 94 102 . . . . 20 . Allied During Kill 68 | . . . 68 . . . . . . Successful Hack 18 | . 3 15 . . . . . . . Disable Machine 60 | . . 45 . 15 . . . . . Destroy Structure 21 | . 2 2 . 1 . 9 . 7 . Lose Combat Pursuer 165 | . 15 15 60 . . . . 75 . Influence Decreases 1732 | 20 191 418 761 141 . 44 10 132 15 Entered New Map 163 | . . 5 117 28 . . 7 . 6 Time Decay 1225 | 20 191 383 360 103 . 35 3 121 9 Lost Part 135 | . . 30 84 10 . . . 11 . Lost Ally 209 | . . . 200 . . 9 . . . Squads Dispatched 8 | . . . 4 . . . . 4 . Investigation 2 | . . . . . . . . 2 . Extermination 1 | . . . . . . . . 1 . Reinforcement 2 | . . . 1 . . . . 1 . Assault . | . . . . . . . . . . Garrison 3 | . . . 3 . . . . . . Intercept . | . . . . . . . . . . Searches Triggered . | . . . . . . . . . . Construction Impeded . | . . . . . . . . . . Haulers Reinforced . | . . . . . . . . . . Active Scanning Responses . | . . . . . . . . . . Cargo Convoy Interrupts . | . . . . . . . . . . Stealth | -11 -10 -9 -9 -9 -9 -6 -6 -6 -6 --------- Run | Yrd Mat Mat Sto Rec Scr Fac Was Fac Low Distress Signals 5 | . 1 4 . . . . . . . Communications Jammed . | . . . . . . . . . . Distress Signals . | . . . . . . . . . . Times Spotted 106 | . 13 32 21 3 . 4 6 20 7 Peak Tracking Total 8 | . 3 7 5 2 . 3 6 8 7 Tactical Retreats 6 | . 1 1 2 . . . . 2 . Traps | -11 -10 -9 -9 -9 -9 -6 -6 -6 -6 ------- Run | Yrd Mat Mat Sto Rec Scr Fac Was Fac Low Traps Triggered 4 | . 1 1 . . . 1 . 1 . Indirectly . | . . . . . . . . . . Trap Hack Attempts . | . . . . . . . . . . Triggered . | . . . . . . . . . . Disarmed . | . . . . . . . . . . Reprogrammed . | . . . . . . . . . . Reused . | . . . . . . . . . . Traps Extracted . | . . . . . . . . . . Installed . | . . . . . . . . . . Triggered . | . . . . . . . . . . Machines | -11 -10 -9 -9 -9 -9 -6 -6 -6 -6 ---------- Run | Yrd Mat Mat Sto Rec Scr Fac Was Fac Low Machines Disabled 4 | . . 3 . 1 . . . . . Max in Single Turn 1 | . . 1 . 1 . . . . . Machines Repaired . | . . . . . . . . . . Machines Dismantled . | . . . . . . . . . . Machines Sabotaged . | . . . . . . . . . . Overloaded Fab Kills . | . . . . . . . . . . Hacking | -11 -10 -9 -9 -9 -9 -6 -6 -6 -6 --------- Run | Yrd Mat Mat Sto Rec Scr Fac Was Fac Low Machines Accessed 15 | . 6 5 2 . . . . 2 . Terminals 11 | . 6 3 2 . . . . . . Fabricators . | . . . . . . . . . . Repair Stations 1 | . . 1 . . . . . . . Recycling Units 2 | . . . . . . . . 2 . Scanalyzers 1 | . . 1 . . . . . . . Garrison Access . | . . . . . . . . . . Total Hacks 26 | . 9 9 6 . . . . 2 . Successful 17 | . 6 8 1 . . . . 2 . Failed 9 | . 3 1 5 . . . . . . Catastrophic . | . . . . . . . . . . Database Lockouts . | . . . . . . . . . . Manual 20 | . 9 4 5 . . . . 2 . Terminals 19 | . 9 4 6 . . . . . . Fabricators . | . . . . . . . . . . Repair Stations 3 | . . 3 . . . . . . . Recycling Units 2 | . . . . . . . . 2 . Scanalyzers 2 | . . 2 . . . . . . . Garrison Access . | . . . . . . . . . . Terminal Hacks 1 | . . . 1 . . . . . . Open Door 1 | . . . 1 . . . . . . Fabricator Hacks . | . . . . . . . . . . Repair Station Hacks 2 | . . 2 . . . . . . . Scan Component 1 | . . 1 . . . . . . . Repair 1 | . . 1 . . . . . . . Recycling Unit Hacks . | . . . . . . . . . . Scanalyzer 2 | . . 2 . . . . . . . Insert Component 1 | . . 1 . . . . . . . Analyze 1 | . . 1 . . . . . . . Garrison Access Hacks . | . . . . . . . . . . Unauthorized Hacks 12 | . 6 4 . . . . . 2 . Terminals 10 | . 6 4 . . . . . . . Botnet 2 | . 1 1 . . . . . . . Skim 8 | . 5 3 . . . . . . . Fabricators . | . . . . . . . . . . Repair Stations . | . . . . . . . . . . Recycling Units 2 | . . . . . . . . 2 . Fedlink 2 | . . . . . . . . 2 . Scanalyzers . | . . . . . . . . . . Garrison Access . | . . . . . . . . . . Data Cores Recovered . | . . . . . . . . . . Used . | . . . . . . . . . . Hacking Detections 8 | . 2 3 3 . . . . . . Full Trace Events . | . . . . . . . . . . Feedback Events . | . . . . . . . . . . Feedback Blocked . | . . . . . . . . . . Robot Schematics Acquired . | . . . . . . . . . . Robots Built . | . . . . . . . . . . Authchips . | . . . . . . . . . . Time . | . . . . . . . . . . Total Robot Build Rating . | . . . . . . . . . . Part Schematics Acquired 1 | . . 1 . . . . . . . Parts Built . | . . . . . . . . . . Authchips . | . . . . . . . . . . Time . | . . . . . . . . . . Total Part Build Rating . | . . . . . . . . . . Parts Repaired 1 | . . 1 . . . . . . . Time 26 | . . 26 . . . . . . . Parts Recycled . | . . . . . . . . . . Recycled Matter . | . . . . . . . . . . Retrieved Matter . | . . . . . . . . . . Retrieved Components . | . . . . . . . . . . Parts Scanalyzed 1 | . . 1 . . . . . . . Part Schematics Acquired 1 | . . 1 . . . . . . . Parts Damaged . | . . . . . . . . . . Bothacking | -11 -10 -9 -9 -9 -9 -6 -6 -6 -6 ------------ Run | Yrd Mat Mat Sto Rec Scr Fac Was Fac Low Used RIF Installer . | . . . . . . . . . . Robots Hacked . | . . . . . . . . . . Non-combat . | . . . . . . . . . . Combat . | . . . . . . . . . . Robot Hacks Applied . | . . . . . . . . . . Relay Couplers Released . | . . . . . . . . . . Fabnet Peak Effective % . | . . . . . . . . . . Robots Rewired 4 | . . . . 4 . . . . . Allies Hacked . | . . . . . . . . . . Hacks Repelled . | . . . . . . . . . . Allies | -11 -10 -9 -9 -9 -9 -6 -6 -6 -6 -------- Run | Yrd Mat Mat Sto Rec Scr Fac Was Fac Low Total Allies 14 | . . . 10 4 . . . . . Largest Group 10 | . . . 10 4 4 4 1 . . Highest-Rated Group 88 | . . . 88 76 76 76 27 . . Highest-Rated Ally 34 | . . . 16 34 34 34 27 . . Total Orders . | . . . . . . . . . . Ally Attacks 51 | . . . 50 . . 1 . . . Total Damage 603 | . . . 417 . . 186 . . . Kills 7 | . . . 7 . . . . . . Allies Corrupted . | . . . . . . . . . . Allies Melted . | . . . . . . . . . . Intel | -11 -10 -9 -9 -9 -9 -6 -6 -6 -6 ------- Run | Yrd Mat Mat Sto Rec Scr Fac Was Fac Low Active Infowar (turns) 3329 | 93 858 985 106 . 956 227 104 . . Sensors 1287 | . . . . . 956 227 104 . . Terrain 877 | . . 686 . . . 93 98 . . Seismic 2042 | 93 858 985 106 . . . . . . Robot Analysis Total . | . . . . . . . . . . Derelict Logs Recovered . | . . . . . . . . . . Drone Launches . | . . . . . . . . . . Drone Recoveries . | . . . . . . . . . . Exploration | -11 -10 -9 -9 -9 -9 -6 -6 -6 -6 ------------- Run | Yrd Mat Mat Sto Rec Scr Fac Was Fac Low Turns Passed 7307 | 192 858 985 1073 651 2661 227 129 417 114 Spaces Moved 3766 | 87 468 470 507 244 1099 108 100 453 230 Core 237 | 2 1 . 2 . . . 39 185 8 Treads 2850 | 85 467 351 409 244 1099 108 61 26 . Legs 108 | . . . . . . . . 108 . Wheels 215 | . . 119 96 . . . . . . Hover . | . . . . . . . . . . Flight 356 | . . . . . . . . 134 222 Fastest Speed 45 | 50 160 130 115 240 240 160 50 45 45 Average Speed 169 | 157 160 154 162 240 240 160 129 71 45 Slowest Speed 750 | 160 250 320 450 240 240 160 750 160 50 Overloaded Moves . | . . . . . . . . . . Propulsion Burnouts . | . . . . . . . . . . Robots Hopped 9 | . . . . . . . . 5 4 Potential Cave-ins . | . . . . . . . . . . Cave-ins Triggered . | . . . . . . . . . . Exploration Rate (%) 47 | 4 82 37 73 56 81 4 83 18 33 Regions Visited 9 Branch Regions 4 Pre-discovered Areas 1 | . . . . . . . . 1 . Known Exits Taken 2 | . . . 1 . . . . 1 . Unknown Exits Taken 5 | 1 1 1 . 1 1 . . . . Scrap Searched 6 | . . . . . 5 . . . 1 Spaces Dug . | . . . . . . . . . . Terrain Destroyed 8 | . . . . 1 . . . 7 . Melee . | . . . . . . . . . . Projectile 8 | . . . . 1 . . . 7 . AOE . | . . . . . . . . . . Terrain Rammed . | . . . . . . . . . . Walls Destroyed . | . . . . . . . . . . Machines Disabled . | . . . . . . . . . . Actions | -11 -10 -9 -9 -9 -9 -6 -6 -6 -6 --------- Run | Yrd Mat Mat Sto Rec Scr Fac Was Fac Low Total 4333 | 115 531 611 664 290 1125 147 99 515 236 Wait 152 | 3 17 38 57 . 5 17 . 6 9 Move 3741 | 86 467 469 506 243 1098 108 99 443 222 Hop 8 | . . . . . . . . 4 4 Pick Up 50 | 7 7 9 10 . 9 2 . 6 . Fast Attach 33 | 7 3 3 6 . 2 1 . 11 . Attach 19 | . . 3 7 1 . 5 . 3 . Detach 2 | . . . . . . . . 2 . Swap 24 | . 5 6 8 . 3 2 . . . Drop 41 | . 6 5 9 . 8 3 . 9 1 Fire 199 | 12 24 76 47 9 . 4 . 27 . Melee 5 | . . . . . . 5 . . . Ram 1 | . . . . . . . . 1 . Kick . | . . . . . . . . . . Crush 14 | . 2 2 7 2 . . . 1 . Escape Stasis . | . . . . . . . . . . Rewire 44 | . . . 7 35 . . . 2 . Trap . | . . . . . . . . . . Miscellaneous . | . . . . . . . . . . Route ------- -11/Scrapyard -10/Materials (discovered 4 exits: *Mat x3 / [*Min]) -9/Materials (discovered 2 exits: [*Mat] / *Sto) -9/Storage (discovered 2 exits: [*Mat] / *Rec) -9/Recycling (discovered 2 exits: [*Fac] / [*Scr]) -9/Scraptown -6/Factory -6/Waste -6/Factory -6/Lower Caves History --------- Turn | Location | Event 48 | -11/Scrapyard | Discovered new exit (range 14) 193 | -11/Scrapyard | Entered Materials 313 | -10/Materials | Build established: Mutant 400 | -10/Materials | Discovered new exit (range 16) 610 | -10/Materials | Discovered new exit (range 10) 903 | -10/Materials | Discovered new exit (range 15) 940 | -10/Materials | Discovered new exit (range 12) 1027 | -10/Materials | Learned location of 1 exit from Storage 1051 | -10/Materials | Entered another Materials area 1051 | -9/Materials | Evolved 2 slots: Utility x2 1718 | -9/Materials | Repaired Lgt. Treads 1971 | -9/Materials | Discovered new exit (range 9) 1985 | -9/Materials | Discovered new exit (range 14) 2036 | -9/Materials | Entered Storage 2037 | -9/Storage | Identified exit to Recycling 2160 | -9/Storage | Core integrity fell below 50% 2196 | -9/Storage | Lost 6 parts (1p1n1u3w) 2633 | -9/Storage | Assisted by bots powering up and referring to "LRC-V3" 2758 | -9/Storage | Discovered new exit (range 15) 2804 | -9/Storage | Lost 4 allies 2918 | -9/Storage | Build established: Commander-Mutant 2958 | -9/Storage | Lost 3 allies 3043 | -9/Storage | Lost 3 allies 3100 | -9/Storage | Used back door to open Recycling access 3109 | -9/Storage | Core integrity fell below 20% 3109 | -9/Storage | Entered Recycling 3222 | -9/Recycling | Discovered new exit (range 14) 3224 | -9/Recycling | Build established: Mutant 3703 | -9/Recycling | Scanned before Scraplab entrance 3735 | -9/Recycling | Build established: Commander-Mutant 3736 | -9/Recycling | Entered Scraplab 3756 | -9/Recycling | Discovered new exit (range 3) 3760 | -9/Recycling | Entered Scraptown 3760 | -9/Scraptown | Accompanied by 4 allies 3760 | -9/Scraptown | System corruption cleaned by C-Scrubber 4119 | -9/Scraptown | Heard Great Nut preacher, LISTEN AND RECITE! 4236 | -9/Scraptown | Visited Shadow of the Wyrm 4304 | -9/Scraptown | Visited Awakened 4352 | -9/Scraptown | Visited Symbiants 4390 | -9/Scraptown | Visited Comm Corps 5063 | -9/Scraptown | Visited Red Mages 5164 | -9/Scraptown | Visited IN-MT5's Study 5178 | -9/Scraptown | Visited TADAMA 5238 | -9/Scraptown | Visited UFD Registry 5238 | -9/Scraptown | Registered with UFD as "Longgrid" 5332 | -9/Scraptown | Visited Curators Association 5373 | -9/Scraptown | Visited Derelict Rescue Squad 5437 | -9/Scraptown | Visited Junk Repository 5544 | -9/Scraptown | Visited Analyses Database 5566 | -9/Scraptown | Visited Observation Area 5607 | -9/Scraptown | Visited Scrap Suit Storage 5638 | -9/Scraptown | Visited DA-N13 Charitable Foundation 5652 | -9/Scraptown | Found DCF Scrap (27 items) 5822 | -9/Scraptown | Visited Research Penetration Think Tank 5877 | -9/Scraptown | Visited A0-MCA Data Center 5894 | -9/Scraptown | Given a B- rating by A0-MCA 5901 | -9/Scraptown | Found A0-MCA's Component Scanner 5950 | -9/Scraptown | Visited Scrapoid Pod Storage 6276 | -9/Scraptown | Met Optimus 6276 | -9/Scraptown | Accepted into 0bPrime 6399 | -9/Scraptown | Discovered new exit (range 5) 6421 | -9/Scraptown | Entered Factory 6421 | -6/Factory | Accompanied by 4 allies 6421 | -6/Factory | Evolved 6 slots: Propulsion x2, Utility x3, Weapon x1 6544 | -6/Factory | Lost 3 allies 6648 | -6/Factory | Sucked down chute 6648 | -6/Factory | Entered Waste 6653 | -6/Waste | 1 allies followed down the chute 6663 | -6/Waste | EMP discharged 6686 | -6/Waste | Spotted C-40 Crusher 6729 | -6/Waste | Spotted C-40 Crusher 6737 | -6/Waste | Spotted C-40 Crusher 6739 | -6/Waste | Spotted C-40 Crusher 6741 | -6/Waste | Spotted C-40 Crusher 6743 | -6/Waste | Crushed by Compactor (1 part destroyed, 2 dropped) 6746 | -6/Waste | Crushed by Compactor (1 part destroyed, 1 dropped) 6752 | -6/Waste | Crushed by Compactor (1 part destroyed, 2 dropped) 6756 | -6/Waste | Crushed by Compactor (1 part destroyed, 1 dropped) 6759 | -6/Waste | Crushed by Compactor (1 part destroyed, 1 dropped) 6761 | -6/Waste | Spotted C-40 Crusher 6763 | -6/Waste | EMP discharged 6772 | -6/Waste | Discovered new exit (range 10) 6777 | -6/Waste | Entered Factory 6790 | -6/Factory | Lost 6 parts (1p2n2u1w) 6813 | -6/Factory | Assembled infested ambush trap array 6854 | -6/Factory | Core integrity fell below 50% 6930 | -6/Factory | Loaded intel: 8 recycling unit locations 7048 | -6/Factory | Build established: Mutant 7159 | -6/Factory | Core integrity fell below 20% 7179 | -6/Factory | Discovered new exit (range 15) 7181 | -6/Factory | Learned location of Protoforge (-3) 7193 | -6/Factory | Identified exit to Lower Caves 7194 | -6/Factory | Entered Lower Caves 7260 | -6/Lower Caves | Attracted the attention of an 0b10 checkpoint 7308 | -6/Lower Caves | Destroyed by H-66 Slayer with Gauss Rifle Last Messages --------------- 07223_ Penetrated by Slug. 07225_ Slug penetrates Wall. 07229_ Penetrated by Slug. 07246_ A6MFGOA YUVKUUOTPLWDFVF 07258_ Searching scrap... 07258_ Found Energy Well. 07258_ Found Mak. Light Armor Plating. 07258_ Found 61 Matter. 07259_ Acquired 61 matter. 07260_ Y-54 Guardian: "INTERCEPTING UNREGISTERED DERELICT." 07266_ System corrupted: Matter fused (-9). 07289_ Slug penetrates Wall. 07290_ Penetrated by Slug. 07294_ System corrupted: Matter fused (-9). 07303_ Slug penetrates Wall. 07303_ Imp. Cesium-ion Thruster destroyed. 07303_ Slug penetrates Wall. 07303_ Penetrated by Slug. 07303_ Dropped Arm. Leg. 07308_ Penetrated by Slug. Map ----- +----------------------------------------------------+ | ???????????? ?????????????????????????????????? | | ???????????? ?????????????????????????????????? | | ????????????% ?????????????????????????????????? | | ????????????? ?????????????????????????????????? | | ????????????? ?????????????????????????????????? | | ????????????? ?????????????????????????????????? | | ?????????????# ?????????????????????????????????? | | ?????????????# ##???????????????????????????????? | | ?????????????# ##??????????????????????????????? | | ?????????????# #??###?????????????????????????? | | ?????????????# ### #?????????????????????????? | | ????????????## ? ???????????????????????? | | ???????????## ??? ???????????????????????? | | ???????????# #???? # #????????????????????? | | ???????????# #???? " "#? ?????????????????? | | ???????????## #??" "# ????????????????? | | ????????????#### #??" T ?? ????????????? | | ???????????????# #?"" ?? ?????????????? | | ??????????????## #? " ? ??????????????? | | ?????????????## #" * "#?? ???????????????? | | ????????????## #" #? ????????????????? | | ????????????# "#? #????????????????? | | ???????????# ## =# "# #????????????????? | | ???????????###### #####+# ## #????????????????? | | ??????????????## #????????????????? | | ?????????????## @ #????????????????? | | ?????????##### ## ##????????????????? | | ????????## h #### ##?????????????????? | | ???????## h### #??# #??????????????????? | | ???????# #?### #??# ###??????????????????? | | ???????## ##?#####?## ##?????????????????###? | | ????????## ### ##?## #?????????????????## ## | | ????????## ## ### ##??????????????### # | | ?????#### ### ## #??????????????# # | | ???### ##?## #?????????#????# # | | ??## #???### #???????? ??????# | | ??# ##?????##### ##?###### ???????## | | ??# ##??????????## #??# ?????????# | | ??# #???????????# #??# ??????????## | | ??# ## #?###???????# #### #????????????# | | ??# ## ### ##??????# ## # #????????##### | | ??## ### ## ###????# ## $##???????# | | ???# ## ###??# #???????# | | ???# ### #??# # ##???????# | | ??? #?# ###### #???????## | | ?? ??# ### ### ######### | | ?# ??## ### #?## ## | | ?## ???# ### ##??## ## | | ??# ???# # ####????### ## | | ??# ????# ! ##?????????# ## | +----------------------------------------------------+ Best States ------------- Heat Dissipation 48 Energy Generation 18 Energy Capacity 310 Matter Stores 300 Matter Capacity 300 Sight Range 16 Robot Scan Range 14 Terrain Scan Range 16 Terrain Scan Density 10 Corruption Block 4 Armor Coverage 150 Core Shielding 30 Evasion (%) 61 Targeting Accuracy 5 Recoil Reduction 4 Energy Filtering 30 Item Schematics ----------------- Carbon-fiber Leg | -9/Materials | Scanalyzed Robot Schematics ------------------ None Fabricated ------------ Nothing Repaired ---------- Lgt. Treads | 17% | -9/Materials Alien Tech Used ----------------- None Achievements -------------- None Challenges ------------ None Game ------ Seed ComponentBehemothFlamer Manual? 0 Play Time 00:32:13 Cumulative 119.0 hours Start 2025.06.01 @ 00:46:45 End 2025.06.01 @ 01:18:39 Sessions 1 Manual Loads 0 Difficulty Rogue Special Mode None Game No. 306 Rogue 306 Adventurer 0 Explorer 0 Win Type - Total 2 Types 2/0/0/0/0/0/0/0/0/0 Lore% 60 Gallery% 52 Achievement% 45 Wizard Run 0 Options --------- Layout 0 ASCII 0 Keyboard 0 Movement Numpad Keybinds 0 Fullscreen 2 Font 18/Terminus Map View 76x50 Zoom Use 0% Tactical HUD 1 Map Filters NONE Filters NONE Steam 1 RUN: 43a582d3-b143-4ded-8225-5690a65cd7ab